fUST/lending_fUST_20250110
["ID","MTS","AMOUNT","RATE_DAILY","PERIOD"]
[348398091,1736505041875,-3000.0,0.000229,2]
[348398092,1736505041884,-3000.0,0.0002291,2]
[348398093,1736505041894,-151.0,0.0002291,7]
[348398094,1736505041903,-4742.74224,0.0002292,2]
[348398095,1736505041912,-7438.69753278,0.00023,2]
[348398096,1736505041922,-151.0,0.00023,7]
[348398097,1736505041931,-7438.69753278,0.00023,3]
[348398098,1736505041941,-250.70290826,0.00023013,3]
[348398099,1736505041950,-202.18226178,0.00023013,3]
[348398100,1736505041960,-212.52127413,0.00023013,3]
[348398101,1736505041970,-295.654956,0.00023013,2]
[348398102,1736505041979,-295.654956,0.00023013,2]
[348398103,1736505041989,-151.0,0.00023013,7]
[348398104,1736505041998,-187.94,0.00023013,3]
[348398105,1736505042009,-496.3,0.00023013,3]
[348398106,1736505042019,-1906.53,0.00023013,3]
[348398107,1736505042030,-506.94560648,0.00023013,3]
[348398108,1736505042041,-500.0,0.00023013,3]
[348398109,1736505042052,-500.0,0.00023013,3]
[348398110,1736505042064,-500.0,0.00023013,3]
[348398111,1736505042075,-500.0,0.00023013,2]
[348398112,1736505042085,-500.0,0.00023013,3]
[348398113,1736505042095,-591.46,0.00023013,3]
[348398114,1736505042105,-1063.73,0.00023013,3]
[348398115,1736505042115,-500.0,0.00023013,3]
[348398116,1736505042125,-360.16,0.00023013,3]
[348398117,1736505042136,-500.0,0.00023013,3]
[348398118,1736505042147,-500.0,0.00023013,3]
[348398119,1736505042158,-495.10710985,0.00023013,3]
[348398120,1736505042169,-5409.37,0.00023013,3]
[348398121,1736505042180,-500.0,0.00023013,3]
[348398122,1736505042190,-500.0,0.00023013,3]
[348398123,1736505042204,-500.0,0.00023013,3]
[348398124,1736505042214,-500.0,0.00023013,3]
[348398125,1736505042225,-500.0,0.00023013,3]
[348398126,1736505042235,-584.74,0.00023013,3]
[348398127,1736505042245,-500.0,0.00023013,3]
[348398128,1736505042257,-3786.10115692,0.00023013,3]
[348398129,1736505042277,-954.86884308,0.00023013,3]
[348398130,1736505042288,-175.0,0.00023014,2]
[348398131,1736505042297,-212.98541072,0.00023023,2]
[348398132,1736505042306,-160.0,0.00023185,5]
[348398133,1736505042315,-151.0,0.000232,10]
[348398134,1736505042324,-151.0,0.000232,9]
[348398135,1736505042333,-151.0,0.00023203,7]
[348398136,1736505042343,-1073.75880157,0.0002328,7]
[348398137,1736505042354,-1073.75880157,0.0002328,7]
[348398138,1736505042363,-1073.75880157,0.0002328,7]
[348398140,1736505042375,-1073.75880157,0.0002328,7]
[348398141,1736505042384,-1073.75880157,0.0002328,7]
[348398142,1736505042394,-1073.75880157,0.0002328,7]
[348398143,1736505042405,-1073.75880157,0.0002328,7]
[348398144,1736505042416,-1073.75880157,0.0002328,7]
[348398145,1736505042427,-1073.75880157,0.0002328,7]
[348398146,1736505042437,-1073.75880157,0.0002328,7]
[348398147,1736505042446,-1073.75880157,0.0002328,7]
[348398148,1736505042455,-1073.75880157,0.0002328,7]
[348398149,1736505042464,-1073.75880157,0.0002328,7]
[348398150,1736505042473,-1073.75880157,0.0002328,7]
[348398151,1736505042482,-1073.75880157,0.0002328,7]
[348398152,1736505042491,-1073.75880157,0.0002328,7]
[348398153,1736505042501,-1073.75880157,0.0002328,7]
[348398154,1736505042510,-1073.75880157,0.0002328,7]
[348398155,1736505042519,-1073.75880157,0.0002328,7]
[348398156,1736505042529,-1073.75,0.0002328,7]
[348398157,1736505042539,-1090.91382198,0.0002328,7]
[348398158,1736505042551,-500.0,0.0002328,7]
[348398161,1736505042830,-300.52,0.00021698,2]
[348398163,1736505042839,-500.0,0.00021973,2]
[348398165,1736505042849,-500.0,0.00021973,2]
[348398167,1736505042858,-1000.0,0.00022521,2]
[348398169,1736505042867,-500.96083186,0.00022521,2]
[348398171,1736505042877,-19.72438038,0.0002328,7]
[348398173,1736505042886,-1610.63820236,0.0002328,7]
[348398175,1736505042895,-656.17573065,0.0002328,7]
[348398177,1736505042907,-954.46247171,0.0002328,7]
[348398179,1736505042915,-1610.63820236,0.0002328,7]
[348398180,1736505042925,-1610.63820236,0.0002328,7]
[348398181,1736505042935,-1610.63820236,0.0002328,7]
[348398182,1736505042944,-1610.63820236,0.0002328,7]
[348398183,1736505042954,-922.07072855,0.0002328,7]
[348398194,1736505046129,-688.56747381,0.0002328,7]
[348398195,1736505046139,-1610.63820236,0.0002328,7]
[348398196,1736505046149,-1003.79432397,0.0002328,7]
[348398197,1736505269426,169.44292,0.00013973,2]
[348398202,1736506025292,-169.44292,0.00018869,2]
[348398203,1736506025313,-169.44292,0.0001906,2]
[348398204,1736506025335,-6114.61843754,0.0002,2]
[348398205,1736506046093,-600.38156246,0.00019602,2]
[348398206,1736506046117,-128.81130137,0.000198,2]
[348398207,1736506050090,-471.57026109,0.000198,2]
[348398208,1736506050112,-600.38156246,0.0002,2]
[348398209,1736506050132,-420.441803,0.00020261,2]
[348398210,1736506050153,-169.44292,0.00020447,2]
[348398211,1736506050173,-165.142346,0.00020557,2]
[348398212,1736506050192,-461.19,0.00020618,2]
[348398213,1736506050213,-300.0,0.00020999,2]
[348398214,1736506050233,-480.00889357,0.00021,4]
[348398215,1736506053094,-471.57026109,0.00019602,2]
[348398216,1736506053115,-603.30111483,0.00021,4]
[348398217,1736506053143,-916.6899916,0.00021,4]
[348398218,1736506053165,-237.27550372,0.00021817,2]
[348398219,1736506053187,-500.0,0.00021916,2]
[348398220,1736506053213,-500.0,0.00021916,2]
[348398221,1736506053236,-500.0,0.00021916,2]
[348398222,1736506053258,-500.0,0.00021916,2]
[348398223,1736506053281,-572.57328636,0.00021916,2]
[348398224,1736506053302,-537.23102713,0.00021916,2]
[348398225,1736506053325,-500.0,0.00021916,2]
[348398226,1736506053347,-500.0,0.00021916,2]
[348398227,1736506053370,-399.08662295,0.00021916,2]
[348398228,1736506053493,-175.07665529,0.00021916,2]
[348398229,1736506053520,-441.99572597,0.00021916,2]
[348398230,1736506053545,-500.0,0.00021916,2]
[348398231,1736506053572,-500.0,0.00021916,2]
[348398232,1736506053595,-500.0,0.00021916,2]
[348398233,1736506053617,-151.065,0.00021916,2]
[348398234,1736506053641,-265.0,0.00021916,2]
[348398235,1736506053669,-417.25607097,0.00021916,2]
[348398236,1736506053691,-151.0,0.00021917,2]
[348398237,1736506053714,-151.0,0.00021917,2]
[348398238,1736506053736,-500.0,0.00021917,3]
[348398239,1736506053759,-500.0,0.00021917,3]
[348398240,1736506053781,-507.31671329,0.00021917,3]
[348398241,1736506053809,-500.0,0.00021917,3]
[348398242,1736506053834,-500.0,0.00021917,3]
[348398243,1736506053857,-500.0,0.00021917,3]
[348398244,1736506053880,-500.0,0.00021917,3]
[348398245,1736506053906,-500.0,0.00021917,2]
[348398246,1736506053930,-501.92,0.00021917,3]
[348398247,1736506053954,-500.0,0.00021917,3]
[348398248,1736506053978,-842.12,0.00021917,3]
[348398249,1736506054003,-3221.41613744,0.00021917,3]
[348398250,1736506133566,170.941275,0.00013973,2]
[348398294,1736506232199,-150.0,0.00019817,2]
[348398296,1736506232211,-170.941275,0.00020447,2]
[348398299,1736506232221,-3327.680465,0.00021109,2]
[348398301,1736506232232,-151.0,0.00021542,2]
[348398303,1736506232243,-151.0,0.0002176,2]
[348398305,1736506232253,-300.0,0.00021916,2]
[348398307,1736506232263,-155.32,0.00021917,2]
[348398309,1736506232274,-3753.27,0.00021917,3]
[348398312,1736506232284,-500.84078379,0.00021917,3]
[348398314,1736506232294,-228.828275,0.00021917,3]
[348398316,1736506232304,-500.0,0.00021917,3]
[348398318,1736506232315,-500.0,0.00021917,3]
[348398320,1736506232325,-504.33346831,0.00021917,3]
[348398322,1736506232334,-504.20549591,0.00021917,3]
[348398325,1736506232344,-500.0,0.00021917,3]
[348398328,1736506232354,-508.19750748,0.00021917,3]
[348398331,1736506232365,-596.65,0.00021917,3]
[348398336,1736506232375,-500.0,0.00021917,3]
[348398338,1736506232386,-500.0,0.00021917,3]
[348398340,1736506232396,-1509.34,0.00021917,3]
[348398342,1736506232406,-500.0,0.00021917,3]
[348398344,1736506232416,-500.0,0.00021917,3]
[348398346,1736506232427,-500.0,0.00021917,3]
[348398348,1736506232437,-500.0,0.00021917,3]
[348398351,1736506232447,-500.0,0.00021917,3]
[348398353,1736506232458,-500.0,0.00021917,3]
[348398355,1736506232469,-500.0,0.00021917,3]
[348398357,1736506232479,-500.0,0.00021917,3]
[348398359,1736506232489,-500.0,0.00021917,3]
[348398361,1736506232499,-200.0,0.00021917,3]
[348398363,1736506232510,-623.85613057,0.00021917,3]
[348398378,1736506232640,-500.0,0.00021917,3]
[348398380,1736506232651,-500.0,0.00021917,3]
[348398381,1736506232660,-500.0,0.00021917,3]
[348398383,1736506232669,-500.0,0.00021917,3]
[348398385,1736506232679,-500.0,0.00021917,3]
[348398387,1736506232688,-500.0,0.00021917,2]
[348398389,1736506232697,-500.0,0.00021917,3]
[348398391,1736506232707,-500.0,0.00021917,3]
[348398393,1736506232715,-807.03,0.00021917,3]
[348398395,1736506232725,-3078.35550668,0.00021917,3]
[348398472,1736506238311,-717.05603084,0.00021917,3]
[348398511,1736506240093,-151.0,0.0002176,2]
[348398513,1736506240102,-352.77846248,0.00021917,3]
[348398515,1736506240112,-300.92949506,0.00021917,3]
[348398517,1736506240121,-500.0,0.00021917,3]
[348398519,1736506240133,-500.0,0.00021917,3]
[348398521,1736506240143,-500.0,0.00021917,3]
[348398523,1736506240152,-500.0,0.00021917,3]
[348398525,1736506240161,-500.0,0.00021917,3]
[348398527,1736506240170,-500.0,0.00021917,3]
[348398529,1736506240179,-101.84934976,0.00021917,3]
[348398901,1736506246067,-398.15065024,0.00021917,3]
[348398903,1736506246076,-300.18,0.00021917,3]
[348398905,1736506246085,-500.0,0.00021917,3]
[348398907,1736506246094,-500.0,0.00021917,3]
[348398908,1736506246105,-151.0,0.0002198,2]
[348398911,1736506246114,-600.82,0.00022,4]
[348398913,1736506246123,-2680.24607023,0.00022,2]
[348398919,1736507006796,161.944365,0.00013973,2]
[348398920,1736507227130,-306.81777861,0.00019304,2]
[348398921,1736507236154,-890.08222139,0.00019304,2]
[348398922,1736507236178,-1178.91440395,0.00019499,2]
[348398923,1736507238122,-17.98559605,0.00019499,2]
[348398924,1736507238143,-196.54497394,0.00019596,2]
[348398925,1736507238164,-210.220901,0.0001997,2]
[348398926,1736507238185,-237.5997296,0.00020058,2]
[348398927,1736507238207,-581.87136777,0.00020504,2]
[348398928,1736507242093,-615.02863223,0.00020504,2]
[348398929,1736507242115,-128.99322639,0.00020807,2]
[348398930,1736507378541,5951.58,0.0001506,2]
[348399040,1736507438322,-342.5200265,0.00018711,2]
[348399042,1736507438331,-342.5200265,0.000189,2]
[348399044,1736507438341,-288.25873421,0.00019596,2]
[348399046,1736507438351,-533.05655671,0.00019996,2]
[348399048,1736507438360,-453.90998057,0.00020703,4]
[348399050,1736507438373,-32.95113861,0.00020807,2]
[348399052,1736507438382,-241.01187657,0.0002091,6]
[348399054,1736507438391,-185.43329444,0.000213,2]
[348399057,1736507438401,-3482.0,0.00021324,2]
[348399059,1736507438411,-170.95739953,0.00021391,2]
[348399061,1736507438420,-251.42078121,0.00021391,2]
[348399063,1736507438429,-500.0,0.00021391,2]
[348399065,1736507438438,-500.0,0.00021391,2]
[348399067,1736507438450,-500.0,0.00021391,2]
[348399069,1736507438460,-500.0,0.00021391,2]
[348399071,1736507438469,-500.0,0.00021391,2]
[348399073,1736507438479,-500.0,0.00021391,2]
[348399075,1736507438488,-500.0,0.00021391,2]
[348399077,1736507438497,-500.0,0.00021391,2]
[348399079,1736507438508,-500.0,0.00021391,2]
[348399081,1736507438518,-483.30361555,0.00021391,2]
[348399083,1736507438529,-500.0,0.00021391,2]
[348399085,1736507438539,-500.0,0.00021391,2]
[348399087,1736507438548,-500.0,0.00021391,2]
[348399089,1736507438557,-500.0,0.00021391,2]
[348399091,1736507438566,-500.0,0.00021391,2]
[348399093,1736507438575,-160.22174733,0.00021391,2]
[348399095,1736507438585,-500.0,0.00021391,2]
[348399097,1736507438595,-500.0,0.00021391,2]
[348399099,1736507438604,-328.72980538,0.00021391,2]
[348399101,1736507438614,-500.0,0.00021391,2]
[348399103,1736507438623,-169.45885604,0.00021391,2]
[348399105,1736507438632,-500.0,0.00021391,2]
[348399107,1736507438641,-500.0,0.00021391,2]
[348399109,1736507438650,-500.0,0.00021391,2]
[348399111,1736507438660,-500.0,0.00021391,2]
[348399113,1736507438669,-500.0,0.00021391,2]
[348399115,1736507438679,-500.0,0.00021391,2]
[348399117,1736507438688,-500.0,0.00021391,2]
[348399119,1736507438698,-500.0,0.00021391,2]
[348399121,1736507438707,-625.51084197,0.00021391,2]
[348399123,1736507438717,-500.0,0.00021391,2]
[348399125,1736507438726,-500.0,0.00021391,2]
[348399127,1736507438736,-500.0,0.00021391,2]
[348399129,1736507438746,-500.0,0.00021391,2]
[348399131,1736507438756,-500.0,0.00021391,2]
[348399133,1736507438765,-500.0,0.00021391,2]
[348399135,1736507438775,-500.0,0.00021391,2]
[348399137,1736507438784,-500.0,0.00021391,2]
[348399139,1736507438793,-500.0,0.00021391,2]
[348399141,1736507438803,-500.0,0.00021391,2]
[348399143,1736507438812,-500.0,0.00021391,2]
[348399146,1736507438821,-500.0,0.00021391,2]
[348399148,1736507438831,-500.0,0.00021391,2]
[348399149,1736507438840,-500.0,0.00021391,2]
[348399151,1736507438849,-518.74802292,0.00021391,2]
[348399154,1736507438859,-500.0,0.00021391,2]
[348399155,1736507438868,-500.0,0.00021391,2]
[348399158,1736507438878,-500.0,0.00021391,2]
[348399159,1736507438887,-500.0,0.00021391,2]
[348399162,1736507438897,-500.0,0.00021391,2]
[348399164,1736507438906,-500.0,0.00021391,2]
[348399166,1736507438916,-500.0,0.00021391,2]
[348399168,1736507438926,-500.0,0.00021391,2]
[348399170,1736507438935,-500.0,0.00021391,2]
[348399172,1736507438944,-500.0,0.00021391,2]
[348399174,1736507438954,-500.0,0.00021391,2]
[348399176,1736507438966,-500.0,0.00021391,2]
[348399178,1736507438975,-500.0,0.00021391,2]
[348399190,1736507439058,-500.0,0.00021391,2]
[348399192,1736507439089,-500.0,0.00021391,2]
[348399194,1736507439098,-500.0,0.00021391,2]
[348399196,1736507439108,-500.0,0.00021391,2]
[348399198,1736507439117,-500.0,0.00021391,2]
[348399200,1736507439126,-500.0,0.00021391,2]
[348399202,1736507439135,-500.0,0.00021391,2]
[348399204,1736507439144,-500.0,0.00021391,2]
[348399206,1736507439153,-500.0,0.00021391,2]
[348399208,1736507439162,-500.0,0.00021391,2]
[348399210,1736507439171,-499.58671208,0.00021391,2]
[348399330,1736507440279,-342.5200265,0.00018524,2]
[348399332,1736507440289,-0.41328792,0.00021391,2]
[348399334,1736507440298,-500.0,0.00021391,2]
[348399336,1736507440308,-500.0,0.00021391,2]
[348399338,1736507440317,-500.0,0.00021391,2]
[348399340,1736507440327,-500.0,0.00021391,2]
[348399342,1736507440336,-500.0,0.00021391,2]
[348399344,1736507440346,-500.0,0.00021391,2]
[348399346,1736507440355,-500.0,0.00021391,2]
[348399348,1736507440364,-500.0,0.00021391,2]
[348399350,1736507440378,-500.0,0.00021391,2]
[348399352,1736507440387,-500.0,0.00021391,2]
[348399354,1736507440396,-300.0,0.00021392,2]
[348399356,1736507440406,-3882.36668558,0.00021392,2]
[348399358,1736507440418,-1693.89455778,0.00021392,2]
[348399360,1736507440429,-23813.0,0.00021392,2]
[348399650,1736507446391,-42536.73875664,0.00021392,2]
[348399651,1736507446400,-1687.61676572,0.00021393,5]
[348399652,1736507446411,-670.19686228,0.00021393,5]
[348399653,1736507446421,-919.06052218,0.00021394,2]
[348399654,1736507446430,-499.0,0.00021399,2]
[348399655,1736507446441,-310454.5957962,0.000214,5]
[348399656,1736507446466,-322.99861416,0.000214,5]
[348399659,1736507852295,188.139296,0.00013973,2]
[348399663,1736508548315,-518.2433235,0.00016387,2]
[348399664,1736508548339,-222.3895131,0.00016622,2]
[348399665,1736508548361,-599.698922,0.00016631,2]
[348399666,1736508548382,-599.698922,0.00016799,2]
[348399667,1736508548403,-2098.0623979,0.00016822,2]
[348399668,1736508548425,-300.0,0.00016999,2]
[348399669,1736508548445,-27915.0,0.00016999,2]
[348399670,1736508548466,-34066.82916599,0.00017,7]
[348399671,1736508548487,-599.698922,0.00017314,2]
[348399672,1736508548508,-1183.54024784,0.00017658,2]
[348399673,1736508548531,-500.0,0.00017755,2]
[348399674,1736508548552,-442.58929062,0.00017755,2]
[348399675,1736508548576,-500.0,0.00017755,2]
[348399676,1736508548597,-236.16787133,0.00017755,2]
[348399677,1736508548622,-500.0,0.00017755,2]
[348399678,1736508548646,-500.0,0.00017755,2]
[348399679,1736508548672,-500.0,0.00017755,2]
[348399680,1736508548699,-500.0,0.00017755,2]
[348399681,1736508548724,-500.0,0.00017755,2]
[348399682,1736508548748,-500.0,0.00017755,2]
[348399683,1736508548773,-500.0,0.00017755,2]
[348399684,1736508548800,-500.0,0.00017755,2]
[348399685,1736508548826,-500.0,0.00017755,2]
[348399686,1736508548852,-492.00420905,0.00017755,2]
[348399687,1736508548877,-500.0,0.00017755,2]
[348399688,1736508548903,-500.0,0.00017755,2]
[348399689,1736508548927,-500.0,0.00017755,2]
[348399690,1736508548952,-500.0,0.00017755,2]
[348399691,1736508548978,-500.0,0.00017755,2]
[348399692,1736508549001,-500.0,0.00017755,2]
[348399693,1736508549027,-500.0,0.00017755,2]
[348399694,1736508549052,-500.0,0.00017755,2]
[348399695,1736508549075,-500.0,0.00017755,2]
[348399696,1736508549098,-500.0,0.00017755,2]
[348399697,1736508549121,-500.0,0.00017755,2]
[348399698,1736508549146,-500.0,0.00017755,2]
[348399699,1736508549270,-500.0,0.00017755,2]
[348399700,1736508549295,-500.0,0.00017755,2]
[348399701,1736508549321,-500.0,0.00017755,2]
[348399702,1736508549345,-500.0,0.00017755,2]
[348399703,1736508549370,-630.49409251,0.00017755,2]
[348399704,1736508549396,-500.0,0.00017755,2]
[348399705,1736508549421,-500.0,0.00017755,2]
[348399706,1736508549448,-500.0,0.00017755,2]
[348399707,1736508549472,-500.0,0.00017755,2]
[348399708,1736508549496,-500.0,0.00017755,2]
[348399709,1736508549520,-500.0,0.00017755,2]
[348399710,1736508549543,-500.0,0.00017755,2]
[348399711,1736508549566,-500.0,0.00017755,2]
[348399712,1736508549589,-500.0,0.00017755,2]
[348399713,1736508549614,-295.72608357,0.00017755,2]
[348399714,1736508550150,-204.27391643,0.00017755,2]
[348399715,1736508550173,-500.0,0.00017755,2]
[348399716,1736508550197,-600.87037457,0.00017755,2]
[348399717,1736508550220,-222.94075444,0.00017755,2]
[348399718,1736508566293,-277.05924556,0.00017401,2]
[348399719,1736508566315,-277.05924556,0.00017577,2]
[348399720,1736508566340,-277.05924556,0.00017755,2]
[348399721,1736508566361,-302.0,0.00018114,2]
[348399722,1736508566382,-175.99454685,0.00018125,2]
[348399723,1736508566403,-18531.80634954,0.00018126,2]
[348399724,1736508587980,150.0,0.00013,10]
[348399738,1736508632590,-277.05924556,0.00017055,2]
[348399739,1736508632600,-277.05924556,0.00017227,2]
[348399740,1736508632609,-6368.19365046,0.00018126,2]
[348399741,1736508632619,-300.0,0.00018271,2]
[348399742,1736508632628,-3735.977369,0.00018272,2]
[348399743,1736508632637,-171.61446617,0.0001881,2]
[348399744,1736508632647,-310.46208603,0.000189,2]
[348399745,1736508632656,-415.36065471,0.00019,15]
[348399746,1736508632665,-15247.3506911,0.00019059,2]
[348399747,1736508632675,-156.72075406,0.00019078,2]
[348399748,1736508632684,-163.769057,0.00019178,2]
[348399749,1736508632693,-245.943,0.00019187,2]
[348399750,1736508632703,-1915.39129596,0.000192,2]
[348399751,1736508632713,-644.06143211,0.000192,2]
[348399752,1736508632722,-522.5452733,0.00019544,2]
[348399753,1736508632731,-156.72075405,0.00019634,2]
[348399754,1736508632741,-420.0,0.0001993,2]
[348399755,1736508632750,-9022.66571103,0.0002,2]
[348399756,1736508632759,-5709.04901345,0.0002,2]
[348399757,1736508632769,-156.72075405,0.00020189,2]
[348399758,1736508632778,-188.139296,0.00020447,2]
[348399759,1736508632787,-156.72075405,0.00020745,2]
[348399760,1736508632797,-23501.64679676,0.0002079,2]
[348399761,1736508632810,-407.65496299,0.00020806,2]
[348399762,1736508632819,-306.0,0.00020932,2]
[348399763,1736508632828,-1777.35164261,0.00021,2]
[348399764,1736508632838,-634.32466211,0.00021174,7]
[348399765,1736508632849,-156.72075405,0.000213,2]
[348399766,1736508632858,-843.80838286,0.000214,5]
[348399767,1736508632868,-335.09843114,0.000214,5]
[348399768,1736508632878,-295143.66509849,0.000214,5]
[348399769,1736508632892,-14051.04239819,0.000214,5]
[348399770,1736508632946,-500.0,0.000214,5]
[348399969,1736508640587,-500.0,0.00019058,2]
[348399971,1736508640597,-610.22268989,0.00019058,2]
[348399973,1736508640607,-403.3882325,0.00019058,2]
[348399975,1736508640617,-22241.88907761,0.000214,5]
[348400262,1736508646322,-844.54115273,0.00018868,2]
[348400263,1736508646332,-500.0,0.00019058,2]
[348400264,1736508646342,-344.54115273,0.00019058,2]
[348400265,1736508646351,-3807.90444621,0.000214,5]
[348400270,1736508937078,190.385609,0.00013973,2]
[348400274,1736509218936,1406.07,0.00023366,61]
[348400275,1736509218960,482.79000001,0.00023366,61]
[348400277,1736509633140,-152.48912502,0.00017246,2]
[348400278,1736509643106,-13.22021688,0.00017246,2]
[348400279,1736509643132,-165.7093419,0.0001742,2]
[348400280,1736509643154,-208.5289962,0.00018697,2]
[348400281,1736509643179,-705.622067,0.00018723,2]
[348400282,1736509643201,-165.7093419,0.0001907,2]
[348400283,1736509643222,-216.160473,0.00019178,2]
[348400284,1736509643245,-671.97618196,0.000193,2]
[348400285,1736509643266,-573.24965809,0.00019535,2]
[348400286,1736509643287,-4507.00649,0.0002,5]
[348400287,1736509643310,-3236.38409903,0.00020017,2]
[348400288,1736509643338,-2792.04178537,0.00020017,2]
[348400290,1736509751136,-702.71491022,0.00019527,2]
[348400408,1736509838705,-459.90363044,0.00019332,2]
[348400415,1736509838876,-177.3465739,0.00019332,2]
[348400417,1736509838885,-637.25020434,0.00019527,2]
[348400419,1736509838895,-1004.06,0.0002,2]
[348400421,1736509838905,-7035.0,0.0002002,2]
[348400423,1736509838914,-300.0,0.0002002,2]
[348400425,1736509838924,-500.0,0.00020021,2]
[348400427,1736509838933,-500.0,0.00020021,2]
[348400429,1736509838942,-500.0,0.00020021,2]
[348400431,1736509838951,-301.74613632,0.00020021,2]
[348400433,1736509838961,-537.23102713,0.00020021,2]
[348400435,1736509838970,-500.0,0.00020021,2]
[348400437,1736509838979,-500.0,0.00020021,2]
[348400439,1736509838988,-500.0,0.00020021,2]
[348400441,1736509838997,-495.68276433,0.00020021,2]
[348400443,1736509839006,-500.0,0.00020021,2]
[348400445,1736509839015,-433.44300324,0.00020021,2]
[348400447,1736509839024,-500.0,0.00020021,2]
[348400449,1736509839034,-500.0,0.00020021,2]
[348400451,1736509839043,-500.0,0.00020021,2]
[348400453,1736509839052,-500.0,0.00020021,2]
[348400455,1736509839062,-500.0,0.00020021,2]
[348400457,1736509839071,-500.0,0.00020021,2]
[348400459,1736509839081,-500.0,0.00020021,2]
[348400461,1736509839090,-500.0,0.00020021,2]
[348400463,1736509839099,-500.0,0.00020021,2]
[348400465,1736509839108,-500.0,0.00020021,2]
[348400467,1736509839117,-454.6215847,0.00020021,2]
[348400469,1736509839126,-500.0,0.00020021,2]
[348400471,1736509839137,-61.45676256,0.00020021,2]
[348400482,1736509839229,-16.94323611,0.00020021,2]
[348400660,1736509840772,-421.60000133,0.00020021,2]
[348400662,1736509840782,-470.97967837,0.00020021,2]
[348400664,1736509840794,-29.02032163,0.00020021,2]
[348400666,1736509840803,-337.04673267,0.00020021,2]
[348400875,1736509843739,-263.09812783,0.00020021,2]
[348400877,1736509843749,-500.0,0.00020021,2]
[348400879,1736509843758,-500.0,0.00020021,2]
[348400881,1736509843767,-500.0,0.00020021,2]
[348400882,1736509843777,-500.0,0.00020021,2]
[348400883,1736509843786,-500.0,0.00020021,2]
[348400884,1736509843795,-500.0,0.00020021,2]
[348400885,1736509843804,-542.85773027,0.00020021,2]
[348400886,1736509843814,-500.0,0.00020021,2]
[348400887,1736509843823,-500.0,0.00020021,2]
[348400888,1736509843832,-500.0,0.00020021,2]
[348400889,1736509843841,-500.0,0.00020021,2]
[348400890,1736509843850,-500.0,0.00020021,2]
[348400891,1736509843859,-500.0,0.00020021,2]
[348400892,1736509843868,-500.0,0.00020021,2]
[348400893,1736509843877,-500.0,0.00020021,2]
[348400894,1736509843886,-500.0,0.00020021,2]
[348400895,1736509843896,-500.0,0.00020021,2]
[348400896,1736509843904,-500.0,0.00020021,2]
[348400897,1736509843913,-500.0,0.00020021,2]
[348400898,1736509843922,-427.35775274,0.00020021,2]
[348400899,1736509843931,-154.84,0.00020023,2]
[348400900,1736509843940,-263.806,0.00020027,2]
[348400901,1736509843958,-1145.96502575,0.00020028,2]
[348400902,1736509843969,-24900.0,0.00020029,2]
[348400903,1736509843979,-190.385609,0.00020447,2]
[348400904,1736509843991,-819.614,0.000209,2]
[348400905,1736509844001,-156.79626879,0.00020999,2]
[348400906,1736509844010,-211.7696704,0.00020999,2]
[348400907,1736509844020,-15977.14381936,0.00021,2]
[348400908,1736509844033,-16787.38543666,0.00021,2]
[348400909,1736509844042,-2000.0,0.00021,2]
[348400910,1736509844052,-447.98412131,0.00021266,2]
[348400911,1736509844061,-500.0,0.00021373,2]
[348400912,1736509844070,-7856.24139884,0.000214,5]
[348400913,1736509844079,-7741.01880873,0.000214,5]
[348400914,1736509844089,-155196.90727208,0.000214,5]